Cogmind - Beta 14 @@@ ROGUE MODE // 2025.01.12 @ 15:51:56 Player: star Result: Destroyed by D-53 Grenadier with Mini Grenade Launcher Performance ------------- Evolutions (0) 0 Regions Visited (4) 800 Robots Destroyed (5) 25 Value Destroyed (122) 122 Prototype IDs (0) 0 Alien Tech Used (0) 0 Bonus (-25) -25 TOTAL SCORE: 922 Bonus ------- Friendly Fire -25 Cogmind --------- Core Integrity 0/250 Matter 300/300 Energy 100/100 System Corruption 0% Temperature Cool (0) Movement Core (50) Location -9/Mines Parts ------- > --- POWER (1) -------- (None) > --- PROPULSION (2) --- (None) > --- UTILITY (2) ------ (None) > --- WEAPON (2) ------- (None) > --- INVENTORY (5) ---- Structural Scanner Targeting Computer Light Armor Plating Authchip [Processor] Heavy Assault Rifle Peak State ------------ > --- POWER ------------ Improved Ion Engine > --- PROPULSION ------- Compact Wheel Compact Wheel > --- UTILITY ---------- Small Storage Unit Light Armor Plating > --- WEAPON ----------- EM Pulse Gun Small Laser > --- INVENTORY -------- Ion Engine Ion Engine Medium Matter Pod Structural Scanner Power Shielding EM Pulse Gun Heavy Assault Rifle Heavy Assault Rifle [Rating: 9] Favorites ----------- Power Improved Ion Engine Engine Improved Ion Engine Propulsion Compact Wheel Wheel Compact Wheel Utility Small Storage Unit Storage Small Storage Unit Protection Light Armor Plating Weapon Small Laser Energy Gun Small Laser Build | -11 -10 -10 -10 -9 ------- Run | Yrd Mat Min Exi Min Slots Evolved . | . . . . . Power . | . . . . . Propulsion . | . . . . . Utility . | . . . . . Weapon . | . . . . . Parts Attached 8 | 6 . 2 . . Power 2 | 1 . 1 . . Engine 2 | 1 . 1 . . Core . | . . . . . Reactor . | . . . . . Propulsion 2 | 2 . . . . Treads . | . . . . . Leg . | . . . . . Wheel 2 | 2 . . . . Hover . | . . . . . Flight . | . . . . . Utility 2 | 1 . 1 . . Device . | . . . . . Storage 1 | 1 . . . . Processor . | . . . . . Hackware . | . . . . . Protection 1 | . . 1 . . Artifact . | . . . . . Weapon 2 | 2 . . . . Energy Gun 2 | 2 . . . . Energy Cannon . | . . . . . Ballistic Gun . | . . . . . Ballistic Cannon . | . . . . . Launcher . | . . . . . Special Weapon . | . . . . . Impact Weapon . | . . . . . Slashing Weapon . | . . . . . Piercing Weapon . | . . . . . Special Melee Weapon . | . . . . . Unidentified Prototypes . | . . . . . Parts Lost 4 | . . . . 4 Power . | . . . . . Propulsion 2 | . . . . 2 Utility 1 | . . . . 1 Weapon 1 | . . . . 1 Highest Loss Streak 4 | . . . . 4 To Critical Strikes . | . . . . . Average Slot Usage (%) 89 | . 85 97 100 41 Engine 13 | . 14 14 14 7 Wheel 25 | . 28 28 28 7 Storage 13 | . 14 14 14 7 Protection 9 | . . 11 14 1 Energy Gun 26 | . 28 28 28 15 Peak Build Rating 9 | 6 6 9 9 9 Average Rating 7 | 4 6 8 9 4 On Entrance 6 | . 6 6 9 9 Naked Turns 35 | . . . . 35 Heaviest Build 18 | 13 13 18 18 15 Greatest Support 32 | 32 32 32 32 16 Greatest Overweight (x) 4 | . . . . 4 Average Overweight (x) . | . . . . . Largest Inventory Capacity 8 | 8 8 8 8 8 Average Capacity 7 | 7 8 8 8 6 Most Carried 8 | 2 4 8 8 8 Average Carried 6 | . 2 7 8 6 Final Capacity 8 | 8 8 8 8 5 Final Carried 8 | 2 4 8 8 5 Class Distribution -------------------- 100% | Mutant Dominant Class ---------------- Mutant | -10/Materials Mutant | -10/Mines Mutant | -10/Exiles Mutant | -9/Mines Resources | -11 -10 -10 -10 -9 ----------- Run | Yrd Mat Min Exi Min Matter Collected 580 | 226 . 354 . . Remotely . | . . . . . Salvage Created 142 | . . 116 . 26 Parts 6 | . . 3 . 3 Haulers Intercepted . | . . . . . Recyclers Shooed . | . . . . . Parts Field Recycled . | . . . . . Retrieved Matter . | . . . . . Parts Self-Destructed . | . . . . . Prevented . | . . . . . Kills | -11 -10 -10 -10 -9 ------- Run | Yrd Mat Min Exi Min Combat Hostiles Destroyed 5 | . . 3 . 2 Guns 5 | . . 3 . 2 Classes Destroyed 2 | . . 1 . 1 Swarmer 2 | . . . . 2 Grunt 3 | . . 3 . . Best Kill Streak 3 | . . 3 . 2 Combat Bots Only 3 | . . 3 . 2 Max Kills in Single Turn 1 | . . 1 . 1 Gunslinging . | . . . . . Exploded . | . . . . . Melee . | . . . . . Uniques/NPCs Destroyed . | . . . . . Combat | -11 -10 -10 -10 -9 -------- Run | Yrd Mat Min Exi Min Hostile Shots Fired 48 | . . 8 . 40 Missed 13 | . . 3 . 10 Damage Taken 565 | . . 83 . 482 Core 261 | . . 17 . 244 Absorbed by Shields . | . . . . . Core Remaining (%) 100 | 100 . . . . Volleys Fired 12 | . . 7 . 5 Largest 2 | . . 2 . 2 Hottest 80 | . . 80 . 80 Shots Fired 24 | . . 14 . 10 Gun 24 | . . 14 . 10 Cannon . | . . . . . Launcher . | . . . . . Special . | . . . . . Kinetic . | . . . . . Thermal 12 | . . 7 . 5 Explosive . | . . . . . Electromagnetic 12 | . . 7 . 5 Robot Hit Streak 6 | . . 4 . 6 Robot Miss Streak 2 | . . 1 . 2 Penetration Max . | . . . . . Secondary Targets 1 | . . . . 1 Max Gunslinging Chain 1 | . . . . 1 Shots Hit Robots 16 | . . 9 . 7 Core Hits 7 | . . 3 . 4 Critical Kills . | . . . . . Critical Parts Destroyed . | . . . . . Critical Strikes . | . . . . . Melee Attacks . | . . . . . Impact . | . . . . . Slashing . | . . . . . Piercing . | . . . . . Sneak Attacks . | . . . . . Combat Hostiles . | . . . . . Follow-up Attacks . | . . . . . Damage Inflicted 298 | . . 157 . 141 Guns 191 | . . 117 . 74 Cannons . | . . . . . Explosions 107 | . . 40 . 67 Melee . | . . . . . Ramming . | . . . . . Kinetic . | . . . . . Thermal 183 | . . 73 . 110 Explosive . | . . . . . Electromagnetic 115 | . . 84 . 31 Impact . | . . . . . Slashing . | . . . . . Piercing . | . . . . . Highest Corruption . | . . . . . Average Corruption . | . . . . . Corruption Purged . | . . . . . Corruption Blocked . | . . . . . Overload Shots . | . . . . . Overflow Damage 1 | . . . . 1 Projectiles . | . . . . . Explosions 1 | . . . . 1 Melee . | . . . . . Knockbacks . | . . . . . Impact . | . . . . . Kinetic . | . . . . . Secondary . | . . . . . Self-Inflicted Damage 61 | . . 22 . 39 Shots 2 | . . 1 . 1 Rammed . | . . . . . Targets Rammed . | . . . . . Kicked . | . . . . . Crushed . | . . . . . Highest Temperature 210 | . . 210 . 107 Average Temperature 75 | . . 99 . 46 Received Heat Transfer 211 | . . 27 . 184 Siege Activations . | . . . . . Robots Corrupted . | . . . . . Combat Hostiles . | . . . . . Parts Fried . | . . . . . Impact Corruptions . | . . . . . Robots Melted . | . . . . . Combat Hostiles . | . . . . . Parts Melted . | . . . . . Heat Transferred 375 | . . 125 . 250 Parts Sabotaged . | . . . . . Parts Stolen . | . . . . . Parts Stripped . | . . . . . Power Chain Reactions 2 | . . 1 . 1 Alert | -11 -10 -10 -10 -9 ------- Run | Yrd Mat Min Exi Min Peak Influence 79 | . 15 79 . 58 Initial 5 | . . 5 . . Average 27 | . 8 31 . 40 Maximum Alert Level . | . . . . . Low Security (%) 100 | 100 100 100 . 100 Level 1 . | . . . . . Level 2 . | . . . . . Level 3 . | . . . . . Level 4 . | . . . . . Level 5 . | . . . . . High Security . | . . . . . Max Security . | . . . . . Squads Dispatched 1 | . . 1 . . Investigation 1 | . . 1 . . Extermination . | . . . . . Reinforcement . | . . . . . Assault . | . . . . . Garrison . | . . . . . Intercept . | . . . . . Searches Triggered . | . . . . . Construction Impeded . | . . . . . Haulers Reinforced . | . . . . . Active Scanning Responses . | . . . . . Cargo Convoy Interrupts . | . . . . . Stealth | -11 -10 -10 -10 -9 --------- Run | Yrd Mat Min Exi Min Distress Signals . | . . . . . Communications Jammed . | . . . . . Distress Signals . | . . . . . Times Spotted 28 | . 1 4 . 23 Peak Tracking Total 19 | . 1 3 . 19 Tactical Retreats 2 | . . . . 2 Traps | -11 -10 -10 -10 -9 ------- Run | Yrd Mat Min Exi Min Traps Triggered . | . . . . . Indirectly . | . . . . . Trap Hack Attempts . | . . . . . Triggered . | . . . . . Disarmed . | . . . . . Reprogrammed . | . . . . . Reused . | . . . . . Traps Extracted . | . . . . . Installed . | . . . . . Triggered . | . . . . . Machines | -11 -10 -10 -10 -9 ---------- Run | Yrd Mat Min Exi Min Machines Disabled . | . . . . . Max in Single Turn . | . . . . . Machines Repaired . | . . . . . Machines Dismantled . | . . . . . Machines Sabotaged . | . . . . . Overloaded Fab Kills . | . . . . . Hacking | -11 -10 -10 -10 -9 --------- Run | Yrd Mat Min Exi Min Machines Accessed 2 | . . 1 1 . Terminals 1 | . . 1 . . Fabricators . | . . . . . Repair Stations . | . . . . . Recycling Units . | . . . . . Scanalyzers . | . . . . . Garrison Access . | . . . . . Total Hacks 5 | . . 3 2 . Successful 3 | . . 1 2 . Failed 2 | . . 2 . . Catastrophic . | . . . . . Database Lockouts . | . . . . . Manual 3 | . . 3 . . Terminals 3 | . . 3 . . Fabricators . | . . . . . Repair Stations . | . . . . . Recycling Units . | . . . . . Scanalyzers . | . . . . . Garrison Access . | . . . . . Terminal Hacks 2 | . . . 2 . Record 2 | . . . 2 . Fabricator Hacks . | . . . . . Repair Station Hacks . | . . . . . Recycling Unit Hacks . | . . . . . Scanalyzer . | . . . . . Garrison Access Hacks . | . . . . . Unauthorized Hacks 1 | . . 1 . . Terminals 1 | . . 1 . . Sabotage 1 | . . 1 . . Fabricators . | . . . . . Repair Stations . | . . . . . Recycling Units . | . . . . . Scanalyzers . | . . . . . Garrison Access . | . . . . . Data Cores Recovered . | . . . . . Used . | . . . . . Hacking Detections . | . . . . . Full Trace Events . | . . . . . Feedback Events . | . . . . . Feedback Blocked . | . . . . . Robot Schematics Acquired . | . . . . . Robots Built . | . . . . . Authchips . | . . . . . Time . | . . . . . Total Robot Build Rating . | . . . . . Part Schematics Acquired . | . . . . . Parts Built . | . . . . . Authchips . | . . . . . Time . | . . . . . Total Part Build Rating . | . . . . . Parts Repaired . | . . . . . Time . | . . . . . Parts Recycled . | . . . . . Recycled Matter . | . . . . . Retrieved Matter . | . . . . . Retrieved Components . | . . . . . Parts Scanalyzed . | . . . . . Part Schematics Acquired . | . . . . . Parts Damaged . | . . . . . Bothacking | -11 -10 -10 -10 -9 ------------ Run | Yrd Mat Min Exi Min Used RIF Installer . | . . . . . Robots Hacked . | . . . . . Non-combat . | . . . . . Combat . | . . . . . Robot Hacks Applied . | . . . . . Relay Couplers Released . | . . . . . Fabnet Peak Effective % . | . . . . . Robots Rewired . | . . . . . Allies Hacked . | . . . . . Hacks Repelled . | . . . . . Allies | -11 -10 -10 -10 -9 -------- Run | Yrd Mat Min Exi Min Total Allies . | . . . . . Largest Group . | . . . . . Highest-Rated Group . | . . . . . Highest-Rated Ally . | . . . . . Total Orders . | . . . . . Ally Attacks . | . . . . . Total Damage . | . . . . . Kills . | . . . . . Allies Corrupted . | . . . . . Allies Melted . | . . . . . Intel | -11 -10 -10 -10 -9 ------- Run | Yrd Mat Min Exi Min Robot Analysis Total . | . . . . . Derelict Logs Recovered . | . . . . . Drone Launches . | . . . . . Drone Recoveries . | . . . . . Exploration | -11 -10 -10 -10 -9 ------------- Run | Yrd Mat Min Exi Min Turns Passed 732 | 51 58 358 175 90 Spaces Moved 631 | 41 55 310 176 49 Core 35 | 1 . . . 34 Treads . | . . . . . Legs . | . . . . . Wheels 596 | 40 55 310 176 15 Hover . | . . . . . Flight . | . . . . . Fastest Speed 50 | 50 100 100 100 50 Average Speed 98 | 98 100 100 100 85 Slowest Speed 250 | 100 100 100 100 250 Overloaded Moves . | . . . . . Propulsion Burnouts . | . . . . . Robots Hopped . | . . . . . Cave-ins Triggered . | . . . . . Exploration Rate (%) 27 | 4 17 59 49 9 Regions Visited 4 Branch Regions 3 Pre-discovered Areas 2 | . . 1 1 . Known Exits Taken . | . . . . . Unknown Exits Taken 4 | 1 1 1 1 . Scrap Searched 2 | . . 1 . 1 Spaces Dug . | . . . . . Terrain Destroyed 7 | . . 4 . 3 Melee . | . . . . . Projectile . | . . . . . AOE 7 | . . 4 . 3 Terrain Rammed . | . . . . . Walls Destroyed . | . . . . . Machines Disabled . | . . . . . Actions | -11 -10 -10 -10 -9 --------- Run | Yrd Mat Min Exi Min Total 714 | 48 58 346 175 87 Wait 48 | . . 15 . 33 Move 627 | 40 54 309 175 49 Hop . | . . . . . Pick Up 13 | 2 3 8 . . Fast Attach 7 | 6 . 1 . . Attach . | . . . . . Detach . | . . . . . Swap 1 | . . 1 . . Drop 6 | . 1 5 . . Fire 12 | . . 7 . 5 Melee . | . . . . . Ram . | . . . . . Kick . | . . . . . Crush . | . . . . . Escape Stasis . | . . . . . Rewire . | . . . . . Trap . | . . . . . Miscellaneous . | . . . . . Route ------- -11/Scrapyard -10/Materials -10/Mines (discovered 2 exits: [*Mat] / *Exi) -10/Exiles -9/Mines History --------- Turn | Location | Event 29 | -11/Scrapyard | Discovered new exit (range 15) 52 | -11/Scrapyard | Entered Materials 80 | -10/Materials | Discovered new exit (range 6) 110 | -10/Materials | Entered Mines 156 | -10/Mines | Joined a pair of Derelicts in attacking an 0b10 outpost 291 | -10/Mines | Discovered new exit (range 15) 301 | -10/Mines | Build established: Mutant 360 | -10/Mines | Learned location of Storage (-7) 463 | -10/Mines | Deemed a non-threat by the Exiles lab entrance 464 | -10/Mines | Discovered new exit (range 5) 468 | -10/Mines | Entered Exiles 492 | -10/Exiles | Met 8R-AWN 509 | -10/Exiles | Met EX-HEX 548 | -10/Exiles | Met EX-DEC 554 | -10/Exiles | Learned location of Zion (-6) 635 | -10/Exiles | Discovered new exit (range 10) 643 | -10/Exiles | Entered Mines 644 | -9/Mines | Assembled infested the area 649 | -9/Mines | Assisted by a Guerilla fighting off Assembled 679 | -9/Mines | Met a Derelict bent on vengeance 698 | -9/Mines | Released all parts (3) 700 | -9/Mines | Core integrity fell below 50% 705 | -9/Mines | Core integrity fell below 20% 721 | -9/Mines | Lost 4 parts (2n1u1w) 733 | -9/Mines | Destroyed by D-53 Grenadier with Mini Grenade Launcher Last Messages --------------- 00652_ S-10 Pest destroyed. 00652_ Plasma Injector explodes. 00652_ Lgt. Armor Plating destroyed. 00652_ Com. Wheel destroyed. 00690_ EM Pulse Gun destroyed. 00698_ Released Imp. Ion Engine. 00698_ Released Sml. Storage Unit. 00698_ Released Sml. Laser. 00707_ D-53 Grenadier knocked back. 00708_ Searching scrap... 00708_ Found Structural Scanner. 00708_ Found Imp. Aluminum Leg. 00708_ Found Signal Interpreter. 00708_ Found 44 Matter. 00708_ Found 45 Matter. 00711_ U-05 Engineer lays Concrete. 00726_ U-05 Engineer builds a Wall. 00730_ R-06 Scavenger suffers critical hit (Burn). 00730_ R-06 Scavenger destroyed. 00733_ U-05 Engineer destroyed. Map ----- +----------------------------------------------------+ | ??????????????????????????????????????????? | | ??????????????????????????????????????????? | | ??????????????????????????????????????????? | | ??????????????????????????????????????????? | | ??????????????????????????????????????????? | | ??????????????????????????????????????????? | | ??????????????????????????????????????????? | | ????????????#?????????????????????????????? | | ???????#### #?????????????????????????????? | | ???????# ?###???????????????????????????? | | ???????# #?? ####????????????????????????? | | ????#### #### ????????????????????????? | | ??###""" #"## ## #???????????????????????? | | ?## " ## #??????????????????????? | | ?#" ![ " #??????????????????????? | | ?##**[ % #??????????????????????? | | ?#" ! "# #a##??????????????????????? | | ?#" "# #a% #??????????????????????? | | ?# "##?#a##??????????????????????? | | ?#" "#??#=#??????###???# ????????? | | ?## ##?## #??### "# ????????? | | ?#" [ #??## ### ""??????????? | | ?##""""" """#??##=! ""??????????? | | ??###### ####???#%! % % ""??????????? | | ???????###??????##d#### ???????? | | ?????????????????#@#????? # #???????? | | ?????????????????###????????#?????????????? | | ??????????????????????????????????????????? | | ??????????????????????????????????????????? | | ??????????????????????????????????????????? | | ??????????????????????????????????????????? | | ??????????????????????????????????????????? | | ??????????????????????????????????????????? | | ??????????????????????????????????????????? | | ??????????????????????????????????????????? | | ??????????????????????????????????????????? | | ??????????????????????????????????????????? | | ??????????????????????????????????????????? | | ??????????????????????????????????????????? | | ??????????????????????????????????????????? | | ??????????????????????????????????????????? | | ??????????????????????????????????????????? | | ??????????????????????????????????????????? | | ??????????????????????????????????????????? | | ??????????????????????????????????????????? | | ??????????????????????????????????????????? | | ??????????????????????????????????????????? | | ??????????????????????????????????????????? | | ??????????????????????????????????????????? | | ??????????????????????????????????????????? | +----------------------------------------------------+ Best States ------------- Heat Dissipation 25 Energy Generation 12 Energy Capacity 265 Matter Stores 300 Matter Capacity 300 Sight Range 16 Terrain Scan Density 10 Armor Coverage 150 Evasion (%) 50 Authchip Count 1 Item Schematics ----------------- None Robot Schematics ------------------ None Fabricated ------------ Nothing Alien Tech Used ----------------- None Achievements -------------- None Challenges ------------ None Game ------ Seed CryofiberDisruptorDetector Manual? 0 Play Time 00:08:27 Cumulative 136.2 hours Start 2025.01.12 @ 02:57:45 End 2025.01.12 @ 15:51:56 Sessions 1 Manual Loads 0 Difficulty Rogue Special Mode None Game No. 230 Rogue 230 Adventurer 0 Explorer 0 Win Type - Total 1 Types 1/0/0/0/0/0/0/0/0 Lore% 52 Gallery% 62 Achievement% 48 Wizard Run 0 Options --------- Layout 0 ASCII 0 Keyboard 1 Movement Numpad Keybinds 0 Fullscreen 2 Font 18/SmallcapsGlow Map View 76x50 Zoom Use 0% Tactical HUD 1 Map Filters NONE Filters NONE Steam 1 RUN: e8058002-6141-4145-8bf7-d2906371131f